bitfinex/quotes_SOLUSD_20240917
["timestamp","ask_amount","ask_price","bid_price","bid_amount"]
[1726544139292,7.608,131.44,131.39,13.8512]
[1726544139456,23.776884,131.43,131.39,13.8512]
[1726544140660,31.385484,131.43,131.39,13.8512]
[1726544140861,31.385484,131.43,131.39,7.6104]
[1726544141878,31.385484,131.43,131.38,7.6113]
[1726544142180,23.776884,131.41,131.37,41.9748]
[1726544142355,23.776884,131.41,131.38,7.6113]
[1726544143579,23.776884,131.42,131.38,7.6113]
[1726544144863,23.776884,131.43,131.39,19.0268]
[1726544145764,23.776884,131.44,131.39,19.0268]
[1726544146263,0.2529152,131.46,131.42,7.6086]
[1726544147186,0.2529152,131.46,131.44,7.608]
[1726544147572,0.2529152,131.46,131.45,7.6074]
[1726544147769,0.2529152,131.46,131.45,23.21214431]
[1726544150664,0.2529152,131.46,131.45,7.6074]
[1726544158868,24.0297992,131.46,131.4,19.0248]
[1726544159069,31.6367992,131.46,131.4,19.0248]
[1726544159399,31.6367992,131.46,131.41,7.6096]
[1726544160288,24.0297992,131.46,131.42,7.6091]
[1726544160591,24.0297992,131.46,131.42,19.0225]
[1726544161496,24.0297992,131.46,131.43,7.6085]
[1726544171803,0.2529152,131.46,131.44,19.0198]
[1726544171983,0.2529152,131.46,131.45,7.6074]
[1726544172377,0.2529152,131.46,131.45,23.20642467]
[1726544173388,0.2529152,131.46,131.45,53.20642467]
[1726544175103,0.2529152,131.46,131.45,53.19047248]
[1726544175291,0.2529152,131.46,131.45,74.71137729]
[1726544175494,0.2529152,131.49,131.48,42.20297248]
[1726544175682,0.2529152,131.49,131.48,72.20297248]
[1726544175883,0.2529152,131.49,131.48,56.6199]
[1726544177087,0.2529152,131.49,131.48,72.20297248]
[1726544177286,0.2529152,131.49,131.48,56.6199]
[1726544185105,0.2529152,131.49,131.48,49.0142]
[1726544185307,0.2529152,131.49,131.48,30.0]
[1726544185818,0.2529152,131.49,131.48,37.6057]
[1726544186023,0.2529152,131.49,131.48,53.18877248]
[1726544189509,0.2529152,131.49,131.48,68.82337248]
[1726544189824,0.2529152,131.49,131.48,70.34377658]
[1726544190022,0.2529152,131.49,131.48,68.82337248]
[1726544193426,0.2529152,131.53,131.52,26.6119]
[1726544193624,0.2529152,131.53,131.52,72.19497248]
[1726544202223,0.2529152,131.53,131.52,30.0]
[1726544202426,0.2529152,131.53,131.52,53.18647248]
[1726544202630,0.2529152,131.53,131.52,77.30324115]
[1726544203142,0.2529152,131.53,131.52,75.78317248]
[1726544205753,0.2529152,131.57,131.56,42.18677248]
[1726544206054,0.2529152,131.61,131.6,26.5956]
[1726544206255,0.2529152,131.61,131.6,42.17867248]
[1726544206551,314.0,131.64,131.62,7.5976]
[1726544206552,310.23451501,131.64,131.62,7.5976]
[1726544206727,310.23451501,131.64,131.61,7.5981]
[1726544206728,310.40486961,131.64,131.61,7.5981]
[1726544210048,307.23451501,131.63,131.61,7.5981]
[1726544216641,307.23451501,131.63,131.6,26.5955]
[1726544216845,307.23451501,131.63,131.61,30.0]
[1726544218259,307.23451501,131.63,131.6,18.9969]
[1726544219258,307.23451501,131.63,131.6,26.5956]
[1726544219446,0.1703546,131.64,131.61,23.18087248]
[1726544219635,6.343,131.67,131.61,23.18087248]
[1726544219636,307.23451501,131.67,131.66,7.5953]
[1726544219837,307.23451501,131.67,131.66,72.16667248]
[1726544220229,307.23451501,131.67,131.66,92.16667248]
[1726544220558,307.23451501,131.67,131.66,107.77287248]
[1726544220756,307.23451501,131.67,131.66,87.77287248]
[1726544223040,307.23451501,131.67,131.66,48.9883]
[1726544223439,331.01139901,131.67,131.66,30.0]
[1726544223840,331.01139901,131.67,131.66,37.5953]
[1726544224443,307.23451501,131.67,131.66,53.17837248]
[1726544224636,0.2702167,131.68,131.67,7.5947]
[1726544224844,0.2702167,131.68,131.67,23.17777248]
[1726544245055,0.2702167,131.72,131.71,26.5734]
[1726544245247,0.2702167,131.72,131.71,33.34487065]
[1726544247279,0.2702167,131.72,131.71,78.89937065]
[1726544250977,0.2702167,131.72,131.71,25.35419817]
[1726544251156,0.2702167,131.72,131.71,40.93727065]
[1726544255276,0.2702167,131.72,131.71,25.35419817]
[1726544255467,0.2702167,131.72,131.71,40.93727065]
[1726544255670,0.2702167,131.72,131.71,25.35419817]
[1726544255968,0.2702167,131.72,131.71,40.93727065]
[1726544257987,0.2702167,131.72,131.71,25.35419817]
[1726544259467,0.2702167,131.72,131.7,7.5928]
[1726544259768,0.2702167,131.72,131.71,7.5924]
[1726544260368,0.2702167,131.72,131.71,23.17547248]
[1726544264083,0.2702167,131.72,131.71,7.5924]
[1726544264285,0.2702167,131.72,131.71,23.17547248]
[1726544265583,0.2702167,131.72,131.71,7.5924]
[1726544266188,0.2702167,131.72,131.7,18.9822]
[1726544266667,0.2702167,131.72,131.7,26.575]
[1726544266994,0.2702167,131.72,131.7,42.15807248]
[1726544267166,0.2702167,131.72,131.71,7.5924]
[1726544267568,0.2702167,131.72,131.7,18.9822]
[1726544268176,23.776884,131.73,131.7,18.9822]
[1726544268387,0.1829378,131.72,131.7,18.9822]
[1726544268573,0.1829378,131.72,131.7,42.15787248]
[1726544280011,0.1829378,131.72,131.7,26.5748]
[1726544285615,0.1829378,131.72,131.7,18.9822]
[1726544287409,0.1829378,131.72,131.7,26.5751]
[1726544294625,0.1829378,131.72,131.67,56.9575]
[1726544294801,0.1829378,131.72,131.69,7.593]
[1726544295007,0.1829378,131.72,131.7,7.5929]
[1726544296740,0.1829378,131.72,131.69,18.9837]
[1726544296904,0.1829378,131.72,131.69,26.577]
[1726544297530,0.1829378,131.72,131.7,7.5928]
[1726544305245,0.1829378,131.72,131.71,7.5924]
[1726544312746,0.1829378,131.72,131.7,7.5928]
[1726544318755,0.1829378,131.72,131.69,18.9837]
[1726544319049,0.1829378,131.72,131.69,34.56677248]
[1726544319254,0.1829378,131.72,131.7,7.5927]
[1726544320033,0.1829378,131.72,131.69,42.16017248]
[1726544320635,0.1829378,131.72,131.7,7.5926]
[1726544321253,0.1829378,131.72,131.69,23.17627248]
[1726544327067,0.1829378,131.72,131.7,7.5929]
[1726544329064,0.1536013,131.72,131.7,7.5929]
[1726544335154,0.1536013,131.72,131.68,18.9851]
[1726544335529,23.776884,131.71,131.68,18.9851]
[1726544336264,23.776884,131.71,131.68,26.5791]
[1726544337646,23.776884,131.71,131.69,7.5934]
[1726544337858,23.776884,131.71,131.7,15.58307248]
[1726544339454,23.776884,131.71,131.7,23.17607248]
[1726544343973,23.9304853,131.71,131.7,23.17607248]
[1726544349682,23.9304853,131.71,131.69,23.17647248]
[1726544349980,0.1536013,131.71,131.69,23.17647248]
[1726544357284,0.1536013,131.71,131.7,7.593]
[1726544364288,0.1536013,131.71,131.69,7.5934]
[1726544366069,0.1536013,131.71,131.69,23.17647248]
[1726544369194,0.1536013,131.71,131.69,7.5934]
[1726544378594,0.1536013,131.71,131.68,42.16217248]
[1726544378800,0.1536013,131.71,131.68,26.5791]
[1726544379014,0.1536013,131.71,131.68,42.16217248]
[1726544379689,0.1536013,131.71,131.69,15.58307248]
[1726544380280,0.1536013,131.71,131.69,23.17657248]
[1726544381212,0.1536013,131.71,131.69,7.5935]
[1726544381406,0.1536013,131.71,131.69,23.17657248]
[1726544381710,0.1536013,131.71,131.69,23.17647248]
[1726544382211,0.1536013,131.71,131.7,23.17607248]
[1726544391021,0.1536013,131.71,131.7,7.593]
[1726544391826,0.1536013,131.71,131.69,7.5934]
[1726544394722,0.1536013,131.71,131.69,23.17647248]
[1726544395217,0.1536013,131.71,131.68,26.579]
[1726544395426,0.1536013,131.71,131.68,42.16207248]
[1726544397031,0.1536013,131.71,131.68,26.579]
[1726544397535,0.1536013,131.71,131.68,42.16207248]
[1726544400434,0.1536013,131.71,131.68,42.16217248]
[1726544402937,0.1536013,131.71,131.68,26.5791]
[1726544403135,0.1536013,131.71,131.68,42.16217248]
[1726544403333,0.1536013,131.71,131.69,7.5933]
[1726544403525,0.1536013,131.71,131.69,23.17637248]
[1726544404260,0.1536013,131.71,131.69,15.58307248]
[1726544409718,0.1536013,131.71,131.68,26.579]
[1726544409719,0.1536013,131.71,131.68,42.16207248]
[1726544413054,23.776884,131.7,131.68,34.56817248]
[1726544413234,23.9304853,131.71,131.68,42.16217248]
[1726544420458,0.1536013,131.71,131.69,7.5935]
[1726544422329,0.1536013,131.71,131.7,23.17607248]
[1726544429399,0.1536013,131.71,131.7,7.593]
[1726544433375,0.1536013,131.71,131.69,7.5935]
[1726544437879,0.1536013,131.71,131.7,7.593]
[1726544451101,0.1536013,131.71,131.68,18.9851]
[1726544451279,0.1536013,131.71,131.68,26.5786]
[1726544451480,0.1536013,131.71,131.69,7.5935]
[1726544455092,0.1536013,131.71,131.7,7.593]
[1726544460505,0.1536013,131.71,131.68,34.56817248]
[1726544460506,0.1536013,131.71,131.69,7.5933]
[1726544462507,0.1536013,131.71,131.7,7.593]
[1726544464292,0.1536013,131.71,131.69,7.5934]
[1726544464505,0.1536013,131.71,131.68,42.16187248]
[1726544464715,0.1536013,131.71,131.69,7.5934]
[1726544469715,23.776884,131.7,131.68,18.9851]
[1726544469903,0.1536013,131.71,131.68,26.5789]
[1726544470216,0.1536013,131.71,131.68,42.16197248]
[1726544470796,0.1536013,131.71,131.69,7.5935]
[1726544476395,0.1536013,131.71,131.68,42.16217248]
[1726544478198,0.1536013,131.71,131.69,7.5935]
[1726544478823,0.1536013,131.71,131.66,22.5871]
[1726544479023,0.1536013,131.71,131.65,10.79776592]
[1726544479201,0.1536013,131.71,131.64,10.80078231]
[1726544479536,23.776884,131.67,131.63,33.54138231]
[1726544479707,23.776884,131.67,131.64,7.5964]
[1726544479906,23.776884,131.68,131.64,34.57357248]
[1726544480229,19.2357163,131.74,131.69,7.5931]
[1726544480230,3.99367927,131.73,131.69,7.5931]
[1726544480406,0.1536013,131.7,131.69,7.5931]
[1726544480823,0.1536013,131.7,131.69,23.17617248]
[1726544481001,0.1536013,131.7,131.69,38.32017248]
[1726544485241,0.1536013,131.7,131.69,22.7371]
[1726544488706,0.1536013,131.7,131.69,38.32017248]
[1726544494608,0.2580163,131.74,131.73,7.5912]
[1726544494923,0.2580163,131.74,131.73,23.17427248]
[1726544495129,0.2580163,131.74,131.73,44.60007248]
[1726544495918,0.2580163,131.74,131.73,15.2402]
[1726544496307,0.2580163,131.74,131.73,22.8314]
[1726544497623,0.2580163,131.74,131.73,15.2402]
[1726544497818,0.2580163,131.74,131.72,18.9784]
[1726544498540,0.2580163,131.74,131.72,26.5701]
[1726544498927,0.2580163,131.74,131.72,18.9784]
[1726544500040,0.2580163,131.74,131.71,7.5922]
[1726544503430,0.2580163,131.74,131.7,45.03887248]
[1726544504037,0.2580163,131.74,131.7,29.4558]
[1726544504235,23.776884,131.73,131.7,15.6773]
[1726544505348,7.8490163,131.74,131.7,15.6773]
[1726544505349,24.0349003,131.74,131.7,23.2702]
[1726544507032,24.0349003,131.74,131.71,7.5923]
[1726544512933,23.5349003,131.74,131.71,7.5923]
[1726544513134,7.5903,131.75,131.71,7.5923]
[1726544513135,23.776884,131.75,131.72,7.5918]
[1726544516160,27.77056327,131.75,131.72,7.5918]
[1726544517654,31.366984,131.75,131.71,26.573]
[1726544520358,30.866984,131.75,131.71,26.573]
[1726544520861,7.5908,131.74,131.71,18.9808]
[1726544522454,23.776884,131.73,131.71,18.9808]
[1726544523461,23.776884,131.74,131.71,26.573]
[1726544525343,23.776884,131.75,131.72,7.5917]
[1726544527757,31.366984,131.75,131.71,32.9455]
[1726544528733,23.776884,131.75,131.71,32.9455]
[1726544528940,23.776884,131.73,131.71,25.3533]
[1726544531065,31.368084,131.73,131.7,15.6773]
[1726544532864,23.776884,131.73,131.7,23.2702]
[1726544533643,23.776884,131.71,131.68,25.5742]
[1726544534342,31.369384,131.71,131.67,24.1267]
[1726544534549,23.776884,131.71,131.67,16.5322]
[1726544534957,23.776884,131.69,131.67,16.5322]
[1726544535164,23.776884,131.69,131.66,7.5949]
[1726544535843,23.776884,131.69,131.65,26.5841]
[1726544536855,23.776884,131.69,131.66,7.5952]
[1726544544672,23.776884,131.69,131.65,26.5841]
[1726544547470,31.370584,131.69,131.65,26.5841]
[1726544547657,23.776884,131.69,131.65,18.9884]
[1726544548078,7.5947,131.67,131.64,15.4283163]
[1726544548279,338.43630147,131.72,131.64,0.2580163]
[1726544548280,23.776884,131.66,131.64,0.2580163]
[1726544549280,31.372184,131.66,131.64,0.2580163]
[1726544554055,31.372684,131.65,131.64,0.2580163]
[1726544555361,7.5982,131.61,131.6,0.2580163]
[1726544555880,31.375084,131.61,131.6,0.2580163]
[1726544567182,7.5971,131.63,131.6,0.2580163]
[1726544567385,311.0,131.65,131.6,0.2580163]
[1726544568266,7.5977,131.62,131.6,0.2580163]
[1726544568881,23.776884,131.61,131.6,0.2580163]
[1726544572393,23.776884,131.61,131.6,7.8567163]
[1726544573789,23.776884,131.61,131.6,0.2580163]
[1726544575888,23.776884,131.61,131.6,7.8567163]
[1726544577806,318.596,131.65,131.61,7.598]
[1726544578100,23.776884,131.64,131.61,7.598]
[1726544581415,318.596,131.65,131.64,7.5964]
[1726544581416,311.0,131.65,131.64,7.5964]
[1726544581594,257.7649,131.73,131.64,7.5964]
[1726544581595,311.0,131.68,131.64,31.42379484]
[1726544581788,311.0,131.68,131.65,28.61039484]
[1726544581987,311.0,131.67,131.66,7.5952]
[1726544582296,311.0,131.7,131.66,37.85949484]
[1726544582503,311.0,131.69,131.66,37.85949484]
[1726544582695,311.0,131.68,131.66,37.85949484]
[1726544582895,311.0,131.7,131.66,67.85949484]
[1726544583292,311.0,131.7,131.67,7.5946]
[1726544583493,311.0,131.69,131.67,7.5946]
[1726544583888,311.0,131.69,131.67,37.5946]
[1726544585207,311.0,131.68,131.67,37.5946]
[1726544585712,23.776884,131.69,131.67,37.5946]
[1726544586990,23.776884,131.69,131.67,30.0]
[1726544587199,334.776884,131.68,131.67,30.0]
[1726544588093,23.776884,131.68,131.67,30.0]
[1726544589104,31.370984,131.68,131.67,30.0]
[1726544595808,7.5941,131.68,131.67,30.0]
[1726544596010,7.5937,131.69,131.67,30.0]
[1726544596324,7.5932,131.7,131.67,30.0]
[1726544596628,7.5932,131.7,131.67,46.3336]
[1726544598029,311.0,131.69,131.67,46.3336]
[1726544600328,291.0,131.69,131.67,46.3336]
[1726544600530,275.1,131.68,131.67,46.3336]
[1726544601033,275.1,131.69,131.67,46.3336]
[1726544601735,275.1,131.68,131.67,46.3336]
[1726544601911,275.1,131.68,131.67,53.9283]
[1726544602834,275.1,131.68,131.67,46.3336]
[1726544603026,23.776884,131.69,131.67,46.3336]
[1726544603913,31.370984,131.68,131.67,30.0]
[1726544604432,31.372084,131.67,131.63,18.9918]
[1726544604737,31.372684,131.65,131.62,22.4235]
[1726544604931,23.776884,131.64,131.62,22.4235]
[1726544605725,7.597,131.63,131.62,15.9248]
[1726544605905,7.597,131.63,131.62,30.0]
[1726544606108,31.373884,131.63,131.62,30.0]
[1726544606638,23.776884,131.62,131.6,0.2580163]
[1726544606810,23.776884,131.62,131.6,30.2580163]
[1726544607633,23.776884,131.62,131.6,0.2580163]
[1726544610037,31.374484,131.62,131.6,0.2580163]
[1726544610621,23.776884,131.62,131.6,0.2580163]
[1726544612424,23.776884,131.63,131.6,0.2580163]
[1726544612622,275.1,131.68,131.6,21.80949499]
[1726544612623,7.5959,131.65,131.6,21.80949499]
[1726544613014,7.5959,131.65,131.61,30.0]
[1726544613928,23.776884,131.64,131.61,30.0]
[1726544614131,23.776884,131.65,131.61,43.6539]
[1726544619144,31.372784,131.65,131.61,43.6539]
[1726544626045,31.372784,131.65,131.61,13.6539]
[1726544627336,31.372784,131.65,131.62,7.5971]
[1726544627337,23.776884,131.65,131.62,7.5971]
[1726544627545,23.776884,131.65,131.61,25.0508]
[1726544627746,31.372984,131.65,131.61,32.6487]
[1726544629158,31.372984,131.65,131.62,30.0]
[1726544630447,31.372984,131.65,131.61,32.6487]
[1726544633548,31.372984,131.65,131.62,30.0]
[1726544644536,23.776884,131.65,131.62,37.597]
[1726544644737,23.776884,131.66,131.62,30.0]
[1726544646039,23.776884,131.66,131.61,25.0508]
[1726544646343,23.776884,131.64,131.61,32.6489]
[1726544648837,23.776884,131.64,131.62,30.0]
[1726544649647,31.373884,131.63,131.62,30.0]
[1726544650245,23.776884,131.62,131.61,6.056]
[1726544650442,23.776884,131.62,131.61,36.056]
[1726544664774,23.776884,131.62,131.61,6.056]
[1726544667876,23.776884,131.62,131.61,36.056]
[1726544673185,23.776884,131.62,131.61,30.0]
[1726544680768,23.776884,131.62,131.61,37.5982]
[1726544681073,16.90793554,131.68,131.64,7.5962]
[1726544681285,7.5945,131.68,131.64,7.5962]
[1726544681968,7.5945,131.68,131.63,20.03841134]
[1726544682394,23.776884,131.67,131.63,20.03841134]
[1726544682775,7.5937,131.69,131.64,20.03801134]
[1726544683778,7.5942,131.68,131.64,20.03801134]
[1726544684181,23.776884,131.67,131.64,50.03801134]
[1726544684696,23.776884,131.67,131.64,20.03801134]
[1726544687894,23.776884,131.67,131.64,50.03801134]
[1726544694389,23.776884,131.67,131.64,37.5964]
[1726544699620,3.99367927,131.7,131.68,7.594]
[1726544699811,15.57915854,131.72,131.66,12.44161134]
[1726544699812,7.5918,131.72,131.67,11.22130308]
[1726544700311,7.5918,131.72,131.67,27.61930308]
[1726544700989,23.776884,131.71,131.67,35.21350308]
[1726544702214,23.776884,131.71,131.68,30.0]
[1726544702590,32.23338547,131.71,131.68,30.0]
[1726544702789,32.23338547,131.71,131.63,41.1251]
[1726544702990,23.776884,131.69,131.64,7.5962]
[1726544703196,23.776884,131.69,131.65,30.0]
[1726544703800,23.776884,131.69,131.64,7.5962]
[1726544704398,296.2649,131.73,131.57,0.2580163]
[1726544704399,23.776884,131.64,131.6,42.7276163]
[1726544704711,31.373284,131.64,131.6,35.1293163]
[1726544705089,31.373284,131.64,131.6,42.7279163]
[1726544705303,23.776884,131.64,131.61,20.03971134]
[1726544705904,23.776884,131.64,131.62,7.5975]
[1726544706215,23.776884,131.66,131.64,7.5963]
[1726544706387,7.5936,131.69,131.65,7.5957]
[1726544706582,7.5936,131.69,131.65,20.03731134]
[1726544706805,7.5944,131.68,131.64,26.5871]
[1726544707007,7.5944,131.68,131.64,39.02871134]
[1726544707514,7.5937,131.69,131.64,39.02871134]
[1726544707992,295.1,131.71,131.64,31.43231134]
[1726544708193,1.1649,131.73,131.64,31.43231134]
[1726544708194,23.776884,131.69,131.65,7.5957]
[1726544708509,31.370484,131.69,131.65,7.5957]
[1726544711710,7.5942,131.68,131.64,26.5871]
[1726544711906,23.776884,131.67,131.64,18.9907]
[1726544713314,31.371684,131.67,131.64,18.9907]
[1726544713517,7.5953,131.66,131.63,6.5158]
[1726544713692,23.776884,131.65,131.63,6.5158]
[1726544714714,23.776884,131.66,131.63,14.1127]
[1726544715013,23.776884,131.67,131.65,12.44161134]
[1726544715804,299.09367927,131.72,131.65,31.43051134]
[1726544716013,3.99367927,131.72,131.66,12.44161134]
[1726544716820,3.99367927,131.72,131.65,31.43051134]
[1726544717318,23.776884,131.7,131.66,20.03631134]
[1726544717502,31.369984,131.7,131.66,20.03631134]
[1726544718018,31.369984,131.7,131.66,7.5947]
[1726544722618,7.5935,131.69,131.65,26.5846]
[1726544722822,23.776884,131.68,131.65,26.5846]
[1726544731144,23.776884,131.69,131.67,7.5946]
[1726544731364,23.776884,131.7,131.67,20.03621134]
[1726544731524,23.776884,131.7,131.68,7.5941]
[1726544731851,3.99367927,131.73,131.69,1.51861455]
[1726544732169,7.5919,131.72,131.68,35.28731134]
[1726544732447,3.99367927,131.72,131.69,7.5935]
[1726544733042,23.776884,131.71,131.69,7.5935]
[1726544733241,23.776884,131.71,131.68,35.28771134]
[1726544734555,23.776884,131.72,131.69,7.5934]
[1726544735829,7.8487163,131.74,131.7,20.03441134]
[1726544736161,0.2580163,131.74,131.71,7.5922]
[1726544736656,0.2580163,131.74,131.71,20.03381134]
[1726544737554,24.0349003,131.74,131.71,20.03381134]
[1726544738453,24.0349003,131.74,131.71,7.5922]
[1726544740459,24.0349003,131.74,131.72,7.5918]
[1726544740639,0.2580163,131.74,131.72,7.5918]
[1726544741043,0.2580163,131.74,131.72,35.35351134]
[1726544741967,0.2580163,131.74,131.73,7.5912]
[1726544742360,0.2580163,131.74,131.72,22.9118]
[1726544746062,0.2580163,131.74,131.72,15.3201]
[1726544746562,0.2580163,131.74,131.71,6.4792]
[1726544746563,0.2580163,131.74,131.68,53.92661134]
[1726544747169,0.2580163,131.74,131.68,41.485]
[1726544747354,23.776884,131.71,131.68,49.079]
[1726544755584,0.2580163,131.74,131.7,18.9816]
[1726544755777,0.2580163,131.74,131.71,20.03401134]
[1726544756779,0.2580163,131.74,131.73,18.9782]
[1726544757479,0.2580163,131.74,131.73,26.5694]
[1726544757671,0.2580163,131.74,131.73,18.9782]
[1726544757863,0.2580163,131.74,131.69,18.9826]
[1726544758069,24.0349003,131.74,131.71,7.592]
[1726544758966,0.2580163,131.74,131.72,7.5918]
[1726544762761,0.2580163,131.74,131.71,26.5731]
[1726544764187,7.8488163,131.74,131.71,18.9808]
[1726544764480,23.776884,131.73,131.68,41.4853]
[1726544764701,24.0349003,131.74,131.68,35.3681]
[1726544764991,23.776884,131.71,131.68,42.9621]
[1726544766987,31.369784,131.71,131.68,16.3836]
[1726544767231,23.776884,131.71,131.65,34.8382]
[1726544767370,23.776884,131.68,131.65,34.8382]
[1726544767699,31.371084,131.68,131.65,15.8497]
[1726544784728,23.776884,131.66,131.62,18.9932]
[1726544784913,23.776884,131.68,131.62,18.9932]
[1726544785430,23.776884,131.69,131.62,18.9932]
[1726544785931,7.5968,131.64,131.61,21.6922]
[1726544786139,23.776884,131.63,131.61,21.6922]
[1726544786819,23.776884,131.64,131.61,29.2902]
[1726544787026,23.776884,131.65,131.62,7.5975]
[1726544787330,18.9822,131.71,131.64,20.03751134]
[1726544787529,45.3315,131.73,131.66,7.5952]
[1726544787530,7.5931,131.7,131.66,7.5952]
[1726544788639,7.5931,131.7,131.65,55.23761134]
[1726544789020,296.2649,131.73,131.66,12.44161134]
[1726544789021,295.1,131.73,131.66,12.44161134]
[1726544789332,7.5928,131.71,131.66,26.37451134]
[1726544789727,7.5928,131.71,131.66,13.9329]
[1726544790036,7.5936,131.69,131.66,6.3381]
[1726544790539,31.370984,131.68,131.65,16.2109]
[1726544790741,23.776884,131.66,131.65,16.2109]
[1726544798025,31.372184,131.66,131.63,6.3644]
[1726544802020,23.776884,131.66,131.63,26.40281134]
[1726544802225,23.776884,131.66,131.64,7.5963]
[1726544802426,23.776884,131.67,131.64,7.5963]
[1726544804036,31.371784,131.67,131.63,13.9613]
[1726544807334,23.776884,131.65,131.63,6.3644]
[1726544807538,31.372784,131.65,131.62,34.7745]
[1726544807840,23.776884,131.65,131.62,42.3719]
[1726544808541,23.776884,131.63,131.62,15.7814]
[1726544809846,23.776884,131.63,131.6,14.4196163]
[1726544811237,23.776884,131.61,131.6,0.2580163]
[1726544812746,7.596,131.65,131.6,7.8567163]
[1726544812957,7.596,131.65,131.6,20.29832764]
[1726544813955,7.596,131.65,131.6,7.8567163]
[1726544814127,23.776884,131.67,131.61,18.9951]
[1726544814333,23.776884,131.63,131.6,0.2580163]
[1726544814533,31.373984,131.63,131.6,0.2580163]
[1726544820363,23.776884,131.63,131.6,7.8567163]
[1726544820855,7.596,131.65,131.61,7.598]
[1726544821160,24.14187927,131.7,131.63,7.597]
[1726544821362,24.14187927,131.7,131.63,20.03861134]
[1726544821860,7.5937,131.69,131.64,26.41311134]
[1726544822034,7.5937,131.69,131.65,22.7973]
[1726544822559,7.5932,131.7,131.65,22.7973]
[1726544822946,7.5932,131.7,131.65,35.23891134]
[1726544823639,7.5936,131.69,131.65,22.7973]
[1726544823836,23.776884,131.68,131.65,22.7973]
[1726544826065,31.371184,131.68,131.65,15.2016]
[1726544829378,23.776884,131.66,131.65,15.2016]
[1726544830080,23.776884,131.66,131.62,16.2834]
[1726544830248,31.373384,131.64,131.62,16.2834]
[1726544830447,31.373884,131.63,131.62,16.2834]
[1726544830662,31.374684,131.62,131.6,0.2580163]
[1726544832380,7.5982,131.61,131.6,0.2580163]
[1726544832545,31.375084,131.61,131.6,0.2580163]
[1726544834054,23.776884,131.61,131.6,0.2580163]
[1726544834661,31.375084,131.61,131.6,0.2580163]
[1726544841672,23.776884,131.61,131.6,0.2580163]
[1726544847668,31.375084,131.61,131.6,0.2580163]
[1726544853773,326.475084,131.61,131.6,0.2580163]
[1726544857096,302.6982,131.61,131.6,0.2580163]
[1726544859080,326.475084,131.61,131.6,0.2580163]
[1726544859672,31.375084,131.61,131.6,0.2580163]
[1726544865903,31.375084,131.61,131.57,0.2580163]
[1726544865904,31.376784,131.58,131.57,0.2580163]
[1726544870187,23.776884,131.58,131.57,0.2580163]
[1726544871972,7.5983,131.61,131.57,0.2580163]
[1726544873079,7.5988,131.6,131.57,0.2580163]
[1726544873512,23.776884,131.59,131.57,0.2580163]
[1726544877131,31.376284,131.59,131.57,0.2580163]
[1726544896530,7.5999,131.58,131.57,0.2580163]
[1726544896741,31.376784,131.58,131.57,0.2580163]
[1726544915875,31.376784,131.58,131.53,0.2580163]
[1726544915876,31.379084,131.54,131.53,0.2580163]
[1726544916748,23.776884,131.54,131.53,0.2580163]
[1726544917875,7.6007,131.57,131.53,26.57942764]
[1726544918063,302.7,131.58,131.54,20.04371134]
[1726544918262,295.1,131.58,131.55,7.6016]
[1726544919852,23.776884,131.57,131.55,7.6016]
[1726544920185,23.776884,131.57,131.54,20.04371134]
[1726544920369,23.776884,131.57,131.54,7.6021]
[1726544921853,318.876884,131.57,131.54,7.6021]
[1726544922756,318.876884,131.57,131.53,45.58582764]
[1726544922959,318.876884,131.57,131.53,25.5416163]
[1726544924071,23.776884,131.55,131.53,25.5416163]
[1726544924262,326.477584,131.57,131.53,25.5416163]
[1726544925973,326.477584,131.57,131.53,33.1444163]
[1726544927678,31.377584,131.57,131.53,45.58602764]
[1726544928681,23.776884,131.57,131.53,45.58602764]
[1726544928976,7.5995,131.59,131.54,20.04331134]
[1726544930283,23.776884,131.58,131.55,19.0037]
[1726544930498,23.776884,131.59,131.55,26.6049]
[1726544930783,23.776884,131.59,131.55,31.44531134]
[1726544931352,23.776884,131.59,131.55,39.04671134]
[1726544931982,7.5995,131.59,131.55,39.04671134]
[1726544932491,23.776884,131.58,131.55,39.04671134]